fUST/lending_fUST_20250608
["ID","MTS","AMOUNT","RATE_DAILY","PERIOD"]
[364952806,1749346238433,-842.5625,0.00020545,2]
[364952807,1749346238443,-229.56495552,0.00020545,2]
[364952808,1749346238453,-153.56466533,0.00020633,2]
[364952809,1749346238465,-690.72477467,0.00020633,2]
[364952810,1749346238474,-163.840187,0.00020633,2]
[364952811,1749346238484,-146.43502423,0.00020633,2]
[364952812,1749346238496,-166.94532289,0.00020633,2]
[364952813,1749346238506,-440.0,0.00020634,2]
[364952814,1749346238515,-191.58097064,0.00020634,2]
[364952815,1749346238527,-248.41902936,0.00020634,2]
[364952816,1749346238536,-440.0,0.00020634,2]
[364952817,1749346238546,-440.0,0.00020634,2]
[364952818,1749346238556,-439.1455708,0.00020634,2]
[364952819,1749346238565,-440.0,0.00020634,2]
[364952820,1749346238576,-440.0,0.00020634,2]
[364952821,1749346238586,-440.0,0.00020634,2]
[364952822,1749346238596,-430.0,0.00020634,2]
[364952823,1749346238605,-440.0,0.00020634,2]
[364952824,1749346238615,-430.0,0.00020634,2]
[364952825,1749346238628,-440.0,0.00020634,2]
[364952826,1749346238638,-440.0,0.00020634,2]
[364952827,1749346238647,-440.0,0.00020634,2]
[364952828,1749346238658,-440.0,0.00020634,2]
[364952829,1749346238668,-440.0,0.00020634,2]
[364952830,1749346238678,-440.0,0.00020634,2]
[364952831,1749346238688,-500.0,0.00020634,2]
[364952832,1749346238698,-440.0,0.00020634,2]
[364952833,1749346238708,-440.0,0.00020634,2]
[364952834,1749346238719,-440.0,0.00020634,2]
[364952835,1749346238730,-335.53661525,0.00020634,2]
[364952836,1749346238740,-440.0,0.00020634,2]
[364952837,1749346238750,-440.0,0.00020634,2]
[364952838,1749346238760,-430.0,0.00020634,2]
[364952839,1749346238770,-430.59663061,0.00020634,2]
[364952840,1749346238779,-440.0,0.00020634,2]
[364952841,1749346238789,-440.0,0.00020634,2]
[364952842,1749346238799,-417.83333337,0.00020634,2]
[364952843,1749346238808,-440.0,0.00020634,2]
[364952844,1749346238819,-440.0,0.00020634,2]
[364952845,1749346238830,-440.0,0.00020634,2]
[364952846,1749346238840,-440.0,0.00020634,2]
[364952847,1749346238851,-405.47862158,0.00020634,2]
[364952848,1749346238862,-440.0,0.00020634,2]
[364952849,1749346238872,-440.0,0.00020634,2]
[364952850,1749346238883,-470.0,0.00020634,2]
[364952851,1749346238893,-440.0,0.00020634,2]
[364952852,1749346238904,-440.0,0.00020634,2]
[364952853,1749346238916,-440.0,0.00020634,2]
[364952854,1749346238927,-184.42,0.00020634,2]
[364952855,1749346238936,-440.0,0.00020634,2]
[364952856,1749346238946,-440.0,0.00020634,2]
[364952857,1749346238957,-222.5163017,0.00020634,2]
[364952858,1749346238971,-217.4836983,0.00020634,2]
[364952859,1749346238984,-261.80336129,0.00020634,2]
[364952860,1749346238994,-440.0,0.00020634,2]
[364952861,1749346239003,-433.57343259,0.00020634,2]
[364952862,1749346239013,-440.0,0.00020634,2]
[364952863,1749346239022,-440.0,0.00020634,2]
[364952864,1749346239031,-440.0,0.00020634,2]
[364952865,1749346239041,-440.0,0.00020634,2]
[364952866,1749346239051,-440.0,0.00020634,2]
[364952867,1749346239062,-440.0,0.00020634,2]
[364952868,1749346239072,-440.0,0.00020634,2]
[364952869,1749346239082,-440.0,0.00020634,2]
[364952870,1749346239091,-440.0,0.00020634,2]
[364952871,1749346239100,-440.0,0.00020634,2]
[364952872,1749346239110,-440.0,0.00020634,2]
[364952873,1749346239119,-440.0,0.00020634,2]
[364952874,1749346239129,-440.0,0.00020634,2]
[364952875,1749346239139,-440.0,0.00020634,2]
[364952876,1749346239149,-1000.0,0.00020634,2]
[364952877,1749346239158,-440.0,0.00020634,2]
[364952878,1749346239168,-430.0,0.00020634,2]
[364952879,1749346239178,-440.0,0.00020634,2]
[364952880,1749346239188,-440.0,0.00020634,2]
[364952881,1749346239197,-242.21395231,0.00020634,2]
[364952882,1749346239209,-197.78604769,0.00020634,2]
[364952883,1749346239219,-440.0,0.00020634,2]
[364952884,1749346239228,-440.0,0.00020634,2]
[364952885,1749346239238,-440.0,0.00020634,2]
[364952886,1749346239247,-440.0,0.00020634,2]
[364952887,1749346239258,-418.31394231,0.00020634,2]
[364952888,1749346239273,-21.68605769,0.00020634,2]
[364952889,1749346239285,-440.0,0.00020634,2]
[364952890,1749346239296,-118.29397828,0.00020634,2]
[364952922,1749346246372,-278.4975941,0.00020634,2]
[364952923,1749346246382,-395.64359466,0.00020634,2]
[364952924,1749346246391,-430.0,0.00020634,2]
[364952925,1749346246401,-440.0,0.00020634,2]
[364952926,1749346246412,-440.0,0.00020634,2]
[364952927,1749346246421,-445.91771194,0.00020634,2]
[364952928,1749346246432,-192.67606864,0.00020634,2]
[364952929,1749346246442,-452.51469545,0.00020634,2]
[364952930,1749346246452,-448.44472888,0.00020634,2]
[364952931,1749346246461,-360.9984077,0.00020634,2]
[364952932,1749346246471,-440.0,0.00020634,2]
[364952933,1749346246481,-449.69670275,0.00020634,2]
[364952934,1749346246491,-451.92055116,0.00020634,2]
[364952935,1749346246500,-440.0,0.00020634,2]
[364952936,1749346246510,-464.34166108,0.00020634,2]
[364952937,1749346246520,-393.55219047,0.00020634,2]
[364952938,1749346246529,-446.99979372,0.00020634,2]
[364952939,1749346246539,-537.35230568,0.00020858,2]
[364952940,1749346246548,-440.0,0.00020908,2]
[364952941,1749346246562,-237.57283759,0.00020908,2]
[364952942,1749346246571,-440.0,0.00020908,2]
[364952943,1749346246581,-430.0,0.00020908,2]
[364952944,1749346246591,-526.3,0.00020908,2]
[364952945,1749346246600,-440.0,0.00020908,2]
[364952946,1749346246610,-440.0,0.00020908,2]
[364952947,1749346246619,-440.0,0.00020908,2]
[364952948,1749346246632,-410.0,0.00020908,2]
[364952949,1749346246641,-400.0,0.00020908,2]
[364952950,1749346246651,-291.01262238,0.00020908,2]
[364952951,1749346254054,99.61,0.00018665,2]
[364952952,1749346254076,473.74,0.00018665,2]
[364952953,1749346258203,245.72,0.00018423,30]
[364952954,1749346291714,174.56,0.0002439,120]
[364952955,1749346334992,263.0724853,0.00018622,2]
[364952959,1749346421343,241.45,0.00018191,30]
[364952960,1749346502352,240.14,0.00018199,30]
[364952961,1749346585406,238.83,0.00018148,30]
[364952962,1749346622614,3693.87299155,0.00018,2]
[364952963,1749346622638,1306.12700845,0.00018,2]
[364952964,1749346668077,237.52,0.00018247,30]
[364952965,1749346700917,1042.0,0.000254,120]
[364952966,1749346749443,236.23,0.00018307,30]
[364952967,1749346831499,234.94,0.00018358,30]
[364952969,1749346913832,233.66,0.00018332,30]
[364952970,1749346994903,232.38,0.00018181,30]
[364952971,1749347077753,231.12,0.00018315,30]
[364952972,1749347108017,503.4351449,0.00024689,35]
[364952974,1749347122427,179.495331,0.00013699,2]
[364952975,1749347200022,5000.0,0.00018,2]
[364952976,1749347233140,-3517.72650725,0.00018343,2]
[364952977,1749347250195,-188.17272784,0.00018343,2]
[364952978,1749347360151,-1294.10076491,0.00018343,2]
[364952979,1749347360174,-540.15,0.00018481,2]
[364953040,1749347432273,-533.28,0.00018773,2]
[364953042,1749347432283,-5000.0,0.00018843,2]
[364953044,1749347432292,-288.8340271,0.00019033,2]
[364953046,1749347432302,-1687.4335152,0.00019266,2]
[364953048,1749347432312,-182.2495095,0.00019396,2]
[364953050,1749347432321,-160.0,0.00019445,2]
[364953052,1749347432331,-1200.0,0.00019472,2]
[364953054,1749347432342,-193.7144619,0.00019473,2]
[364953056,1749347432352,-288.90688699,0.00019588,2]
[364953058,1749347432362,-300.0,0.00020181,2]
[364953060,1749347432371,-300.0,0.00020186,2]
[364953062,1749347432381,-694.26744779,0.00020187,2]
[364953064,1749347432391,-179.495331,0.00020187,2]
[364953066,1749347432402,-1066.55,0.0002048,2]
[364953069,1749347432412,-178.63427099,0.00020524,2]
[364953071,1749347432421,-834.52263295,0.00020554,2]
[364953073,1749347432430,-300.0,0.00020623,2]
[364953075,1749347432439,-440.0,0.00020624,2]
[364953077,1749347432449,-440.0,0.00020624,2]
[364953079,1749347432459,-279.85070711,0.00020624,2]
[364953080,1749347432468,-394.35560885,0.00020624,2]
[364953082,1749347432478,-500.0,0.00020624,2]
[364953085,1749347432487,-500.0,0.00020624,2]
[364953087,1749347432497,-500.0,0.00020624,2]
[364953089,1749347432506,-500.0,0.00020624,2]
[364953091,1749347432517,-500.0,0.00020624,2]
[364953093,1749347432527,-500.0,0.00020624,2]
[364953095,1749347432536,-500.0,0.00020624,2]
[364953097,1749347432550,-307.17276907,0.00020624,2]
[364953099,1749347432560,-378.27642932,0.00020624,2]
[364953101,1749347432570,-500.0,0.00020624,2]
[364953103,1749347432580,-155.4324863,0.00020624,2]
[364953105,1749347432589,-500.0,0.00020624,2]
[364953107,1749347432599,-500.0,0.00020624,2]
[364953109,1749347432608,-500.0,0.00020624,2]
[364953111,1749347432618,-503.96953334,0.00020624,2]
[364953113,1749347432628,-356.79216141,0.00020624,2]
[364953115,1749347432638,-500.0,0.00020624,2]
[364953117,1749347432648,-500.0,0.00020624,2]
[364953120,1749347432657,-249.35413921,0.00020624,2]
[364953122,1749347432667,-500.0,0.00020624,2]
[364953124,1749347432677,-500.0,0.00020624,2]
[364953126,1749347432686,-500.0,0.00020624,2]
[364953127,1749347432696,-500.0,0.00020624,2]
[364953129,1749347432706,-500.0,0.00020624,2]
[364953130,1749347432716,-500.0,0.00020624,2]
[364953131,1749347432728,-500.0,0.00020624,2]
[364953132,1749347432738,-500.0,0.00020624,2]
[364953133,1749347432748,-500.0,0.00020624,2]
[364953134,1749347432758,-500.0,0.00020624,2]
[364953135,1749347432768,-562.92787325,0.00020624,2]
[364953136,1749347432779,-500.0,0.00020624,2]
[364953137,1749347432789,-500.0,0.00020624,2]
[364953138,1749347432800,-500.0,0.00020624,2]
[364953139,1749347432811,-500.0,0.00020624,2]
[364953140,1749347432820,-173.26779242,0.00020624,2]
[364953141,1749347432831,-500.0,0.00020624,2]
[364953142,1749347432841,-595.87330946,0.00020624,2]
[364953143,1749347432851,-500.0,0.00020624,2]
[364953144,1749347432861,-500.0,0.00020624,2]
[364953145,1749347432871,-500.0,0.00020624,2]
[364953146,1749347432882,-500.0,0.00020624,2]
[364953147,1749347432892,-500.0,0.00020624,2]
[364953148,1749347432902,-500.0,0.00020624,2]
[364953149,1749347432912,-590.60449362,0.00020624,2]
[364953150,1749347432922,-500.0,0.00020624,2]
[364953151,1749347432931,-500.0,0.00020624,2]
[364953152,1749347432941,-500.0,0.00020624,2]
[364953153,1749347432952,-500.0,0.00020624,2]
[364953154,1749347432962,-500.0,0.00020624,2]
[364953155,1749347432971,-500.0,0.00020624,2]
[364953156,1749347432982,-472.51224782,0.00020624,2]
[364953157,1749347432992,-1403.5,0.00020624,2]
[364953158,1749347433002,-442.22045504,0.00020624,2]
[364953159,1749347433013,-440.0,0.00020624,2]
[364953160,1749347433022,-426.09174136,0.00020624,2]
[364953161,1749347433036,-13.90825864,0.00020624,2]
[364953162,1749347433046,-245.54174136,0.00020624,2]
[364953171,1749347438132,-194.45825864,0.00020624,2]
[364953172,1749347438144,-440.0,0.00020624,2]
[364953173,1749347438154,-244.16283663,0.00020624,2]
[364953176,1749347440317,-195.83716337,0.00020624,2]
[364953177,1749347440328,-175.47359085,0.00020624,2]
[364953189,1749347446166,-264.52640915,0.00020624,2]
[364953190,1749347446177,-440.0,0.00020624,2]
[364953191,1749347446190,-440.0,0.00020624,2]
[364953192,1749347446203,-448.68598784,0.00020624,2]
[364953193,1749347446213,-440.0,0.00020624,2]
[364953194,1749347446222,-306.69737521,0.00020624,2]
[364953195,1749347446231,-455.79588066,0.00020624,2]
[364953196,1749347446242,-440.0,0.00020624,2]
[364953197,1749347446253,-309.75850822,0.00020625,2]
[364953198,1749347446316,-150.55214235,0.00020625,2]
[364953199,1749347446326,-319.34414621,0.00020625,2]
[364953203,1749347474699,219.82,0.0001844,30]
[364953204,1749347556381,218.62,0.0001887,30]
[364953205,1749347640018,217.43,0.0001828,30]
[364953206,1749347720653,216.24,0.00018059,30]
[364953229,1749347802068,215.06,0.00017849,30]
[364953230,1749347884526,213.89,0.00017848,30]
[364953231,1749347889048,161.209711,0.00019423,61]
[364953232,1749347889195,161.209711,0.00019423,120]
[364953233,1749347966269,212.72,0.00017809,30]
[364953234,1749347975358,203.4302444,0.00025479,120]
[364953235,1749348010730,5000.0,0.00018,2]
[364953237,1749348046349,215.65,0.00017766,30]
[364953238,1749348128343,214.48,0.00018022,30]
[364953239,1749348172130,177.372868,0.00013699,2]
[364953241,1749348209389,213.31,0.00017992,30]
[364953242,1749348215250,5000.0,0.00018,2]
[364953243,1749348291004,215.42,0.00018473,30]
[364953244,1749348311085,182.24354078,0.00018,2]
[364953245,1749348370526,-5000.0,0.00018336,2]
[364953246,1749348374353,215.06,0.00017908,30]
[364953247,1749348426145,-5000.0,0.00018334,2]
[364953248,1749348426168,-501.81,0.00018519,2]
[364953249,1749348426191,-1200.0,0.00019323,2]
[364953250,1749348426213,-2962.7777735,0.00019324,2]
[364953251,1749348426235,-161.209711,0.00019423,2]
[364953252,1749348426257,-28.06574237,0.00019535,2]
[364953253,1749348437103,-223.0379426,0.0001934,2]
[364953254,1749348455093,211.15,0.0001784,30]
[364953256,1749348535746,213.81,0.00018104,30]
[364953257,1749348617846,213.43,0.00017885,30]
[364953259,1749348632327,-3570.80873913,0.00019087,2]
[364953266,1749348632472,-1429.19126087,0.00019087,2]
[364953269,1749348632485,-1959.5291238,0.0001928,2]
[364953271,1749348632497,-426.86,0.00019511,30]
[364953273,1749348632509,-300.0,0.00019603,2]
[364953275,1749348632521,-1200.0,0.00019998,2]
[364953279,1749348632534,-300.0,0.00019999,2]
[364953281,1749348632546,-300.0,0.00019999,2]
[364953283,1749348632559,-2000.0,0.0002,2]
[364953285,1749348632572,-177.372868,0.00020187,2]
[364953287,1749348632584,-744.65356305,0.000205,2]
[364953290,1749348632621,-1383.41180511,0.000205,2]
[364953291,1749348632636,-180.07638414,0.00020518,2]
[364953292,1749348632646,-180.65734918,0.0002056,2]
[364953317,1749348638337,-24.78199362,0.0002056,2]
[364953318,1749348638350,-629.18541035,0.0002056,2]
[364953319,1749348638360,-160.0,0.0002056,2]
[364953320,1749348638371,-500.0,0.00020615,2]
[364953321,1749348638382,-500.0,0.00020615,2]
[364953322,1749348638393,-627.92,0.00020615,2]
[364953323,1749348638403,-500.0,0.00020615,2]
[364953324,1749348638414,-290.40053448,0.00020615,2]
[364953325,1749348638425,-340.32531925,0.00020615,2]
[364953326,1749348638437,-185.9186436,0.00020615,2]
[364953327,1749348638457,-161.99948651,0.00020615,2]
[364953328,1749348638471,-500.0,0.00020615,2]
[364953329,1749348638483,-106.91571014,0.00020615,2]
[364953356,1749348646562,-5000.0,0.00020409,2]
[364953357,1749348646574,-87.456972,0.00020615,2]
[364953358,1749348646585,-500.0,0.00020615,2]
[364953359,1749348646596,-322.91806488,0.00020615,2]
[364953360,1749348646608,-232.87481216,0.00020615,2]
[364953361,1749348646619,-330.27913865,0.00020615,2]
[364953362,1749348646631,-440.0,0.00020616,2]
[364953363,1749348646646,-440.0,0.00020616,2]
[364953366,1749348646658,-1447.11,0.00020616,2]
[364953368,1749348646669,-440.0,0.00020616,2]
[364953369,1749348646682,-259.54393881,0.00020616,2]
[364953377,1749348763638,2016.199999,0.00024689,30]
[364953380,1749349364747,150.0,0.00024688,30]
[364953383,1749349475342,174.290594,0.00013699,2]
[364953386,1749349625143,-5000.0,0.00018807,2]
[364953387,1749349625167,-265.260892,0.00018997,2]
[364953388,1749349625193,-200.0,0.00019617,2]
[364953389,1749349625219,-300.0,0.00019617,2]
[364953390,1749349625239,-300.0,0.00019617,2]
[364953391,1749349625262,-1293.83723651,0.00019618,2]
[364953401,1749349675476,-192.26144801,0.00018,2]
[364953403,1749349692301,5047.91129467,0.00024688,120]
[364953404,1749349707436,54.73855199,0.000176,2]
[364953405,1749349707459,2016.08616318,0.000176,2]
[364953408,1749349718126,2225.25517707,0.00017,2]
[364953437,1749349832501,-5000.0,0.00018787,2]
[364953438,1749349832513,-3482.2726935,0.00018977,2]
[364953439,1749349832524,-262.07886307,0.00019401,2]
[364953440,1749349832534,-170.83069485,0.00019898,2]
[364953441,1749349832544,-300.0,0.00019993,2]
[364953442,1749349832554,-300.0,0.00019993,2]
[364953443,1749349832564,-300.0,0.00019993,2]
[364953444,1749349832574,-300.0,0.00019993,2]
[364953445,1749349832585,-300.0,0.00019993,2]
[364953446,1749349832595,-460.31840837,0.00019997,2]
[364953448,1749349832604,-420.32670754,0.00019997,2]
[364953449,1749349832613,-1405.14,0.00019997,2]
[364953452,1749349832623,-440.0,0.00019997,2]
[364953454,1749349832633,-543.48704835,0.00019997,2]
[364953456,1749349832642,-440.0,0.00019997,2]
[364953458,1749349832651,-440.0,0.00019997,2]
[364953459,1749349832661,-440.0,0.00019997,2]
[364953460,1749349832670,-378.45059827,0.00019997,2]
[364953461,1749349832680,-573.45666393,0.00019997,2]
[364953462,1749349832690,-440.0,0.00019997,2]
[364953463,1749349832701,-440.0,0.00019997,2]
[364953464,1749349832711,-440.0,0.00019997,2]
[364953466,1749349832722,-440.0,0.00019997,2]
[364953467,1749349832731,-440.0,0.00019997,2]
[364953468,1749349832741,-447.7822896,0.00019997,2]
[364953469,1749349832750,-516.74682783,0.00019997,2]
[364953470,1749349832760,-273.84027113,0.00019997,2]
[364953471,1749349832771,-440.0,0.00019997,2]
[364953472,1749349832782,-476.23999682,0.00019997,2]
[364953473,1749349832791,-457.46064793,0.00019997,2]
[364953474,1749349832800,-440.0,0.00019997,2]
[364953475,1749349832812,-440.0,0.00019998,2]
[364953476,1749349832821,-373.38546581,0.00019998,2]
[364953518,1749350593628,5000.0,0.00018,2]
[364953519,1749350609146,5000.0,0.00018,2]
[364953520,1749350637206,409.74416106,0.00017667,2]
[364953521,1749350637553,204.87208053,0.00017845,2]
[364954403,1749350728647,210.3440669,0.00017913,2]
[364955012,1749350797680,157.89152174,0.00018013,3]
[364955013,1749350814539,282.10847826,0.00018113,2]
[364955014,1749350820431,24900.0,0.00017947,2]
[364955128,1749350843216,448.2784441,0.00017617,2]
[364955129,1749350844967,-273.05278523,0.00018013,2]
[364955130,1749350844992,-4717.89152174,0.00018113,2]
[364955131,1749350854157,-194.75487745,0.00018113,2]
[364955132,1749350854180,-201.04381416,0.00018113,2]
[364955133,1749350854202,-300.0,0.00018395,2]
[364955134,1749350854224,-1200.0,0.00018396,2]
[364955135,1749350854247,-300.0,0.00018396,2]
[364955136,1749350854269,-200.0,0.00018396,10]
[364955137,1749350854293,-349.661526,0.00018396,10]
[364955138,1749350854315,-1914.70970176,0.00018397,2]
[364955139,1749350857285,179.176227,0.00013699,2]
[364955140,1749350858176,312.87946603,0.00018113,2]
[364955142,1749350877080,198.2056191,0.00017966,2]
[364955642,1749350936663,171.4587575,0.00017819,2]
[364955643,1749350938877,714.627629,0.00017569,2]
[364955644,1749350939286,357.3138145,0.00017845,2]
[364955717,1749350954131,-3415.39436279,0.00018113,2]
[364955720,1749350954179,-1271.72617118,0.00018113,2]
[364955722,1749350954200,-166.38155091,0.00018296,2]
[364955724,1749350954223,-1305.03833534,0.00018397,2]
[364955726,1749350954244,-166.38155091,0.00018446,2]
[364955728,1749350954265,-166.38155091,0.00018597,2]
[364955767,1749350959940,166.96770541,0.00018559,2]
[364955768,1749350959962,4115.11769762,0.00018559,2]
[364956478,1749351026811,12718.4005135,0.00017967,2]
[364956722,1749351033081,-717.91459697,0.00018559,2]
[364956724,1749351033094,-166.38155091,0.00018747,2]
[364956725,1749351033105,-148.61304722,0.00018897,2]
[364957141,1749351046885,-17.76850369,0.00018897,2]
[364957142,1749351046896,-221.28806242,0.00018897,2]
[364957143,1749351046908,-170.64404055,0.00018897,2]
[364957144,1749351046918,-1418.87709502,0.000189,2]
[364957145,1749351046928,-221.28806241,0.00018977,2]
[364957146,1749351046939,-1200.0,0.00018995,2]
[364957147,1749351046950,-7637.05232277,0.00018996,2]
[364957394,1749351114351,-10000.0,0.00018126,2]
[364957395,1749351125370,213.2591739,0.00024718,30]
[364957683,1749351233672,5000.0,0.00018,2]
[364957684,1749351247787,5182.6272221,0.00017964,2]
[364957685,1749351248836,5000.0,0.00018,2]
[364957686,1749351264519,5000.0,0.00018,2]
[364957687,1749351280388,5000.0,0.00018,2]
[364957688,1749351295315,4222.27207613,0.00018,2]
[364957689,1749351295337,777.72792387,0.00018,2]
[364957690,1749351310483,5000.0,0.00018,2]
[364957691,1749351325783,5000.0,0.00018,2]
[364957692,1749351340982,5000.0,0.00018,2]
[364957693,1749351357762,5000.0,0.00018,2]
[364957694,1749351366916,1675.6838537,0.00017861,2]
[364957695,1749351373246,5000.0,0.00018,2]
[364957696,1749351388285,810.833925,0.00017861,2]
[364957697,1749351389142,5000.0,0.00018,2]
[364957698,1749351404365,5000.0,0.00018,2]
[364957699,1749351419703,5000.0,0.00018,2]
[364957700,1749351435067,5000.0,0.00018,2]
[364957701,1749351436289,606.3261556,0.00017835,2]
[364957702,1749351438480,-633.6886224,0.0001801,2]
[364957703,1749351541742,171.51063096,0.00017693,2]
[364957705,1749351639708,5000.0,0.00018,2]
[364957706,1749351654965,5000.0,0.00018,2]
[364957707,1749351670778,5000.0,0.00018,2]
[364957708,1749351765374,2000.0,0.00024718,30]
[364957709,1749351765810,1850.199999,0.00024718,30]
[364957710,1749351822887,24900.0,0.00017738,2]
[364957711,1749351832768,-968.0666558,0.00018082,2]
[364957712,1749351872804,141.9333442,0.00018082,2]
[364957713,1749351897807,-4858.0666558,0.00018082,2]
[364957714,1749351902124,196.9333442,0.00018082,2]
[364957715,1749351981790,7948.5088597,0.00017875,2]
[364957716,1749352032991,3351.7802895,0.00017782,2]
[364957717,1749352051164,-4803.0666558,0.00018082,2]
[364957718,1749352051186,-165.08265539,0.00018324,2]
[364957719,1749352051208,-285.8510516,0.00018424,2]
[364957720,1749352051229,-1567.66328166,0.00018572,2]
[364957721,1749352051251,-685.79,0.00018653,2]
[364957722,1749352051272,-160.0,0.00018706,2]
[364957723,1749352051293,-221.28806241,0.00018736,2]
[364957724,1749352051314,-2493.33816798,0.00018795,2]
[364957725,1749352051335,-300.0,0.00018825,2]
[364957726,1749352051359,-435.31979483,0.00018826,3]
[364957728,1749352140513,546.29936167,0.0001783,2]
[364957729,1749352140536,16832.45170253,0.0001783,2]
[364957730,1749352156114,-677.06,0.00018646,2]
[364957731,1749352156136,-5000.0,0.00018648,2]
[364957732,1749352161389,24.34592448,0.00018735,2]
[364957753,1749352232098,-5000.0,0.00018548,2]
[364957754,1749352232108,-157.89152174,0.00018635,3]
[364957755,1749352232117,-668.44,0.00018641,2]
[364957756,1749352232126,-146.29811607,0.00018735,2]
[364957757,1749352232136,-1200.0,0.00018824,2]
[364957758,1749352232147,-300.0,0.00018825,2]
[364957759,1749352232157,-300.0,0.00018825,2]
[364957760,1749352232167,-300.0,0.00018825,2]
[364957761,1749352232176,-300.0,0.00018825,2]
[364957762,1749352232187,-300.0,0.00018825,2]
[364957763,1749352232197,-355.51020517,0.00018826,3]
[364957764,1749352232207,-395.42,0.00018826,3]
[364957766,1749352232217,-197.71,0.00018826,3]
[364957768,1749352232226,-593.14,0.00018826,3]
[364957770,1749352232236,-500.0,0.00018835,2]
[364957772,1749352232246,-500.0,0.00018835,2]
[364957774,1749352232257,-522.08948406,0.00018835,2]
[364957775,1749352232267,-401.92741981,0.00018835,2]
[364957776,1749352232276,-500.0,0.00018835,2]
[364957777,1749352232285,-500.0,0.00018835,2]
[364957778,1749352232295,-500.0,0.00018835,2]
[364957779,1749352232306,-500.0,0.00018835,2]
[364957780,1749352232316,-500.0,0.00018835,2]
[364957781,1749352232326,-500.0,0.00018835,2]
[364957782,1749352232336,-500.0,0.00018835,2]
[364957783,1749352232346,-500.0,0.00018835,2]
[364957784,1749352232356,-500.0,0.00018835,2]
[364957785,1749352232365,-500.0,0.00018835,2]
[364957786,1749352232375,-500.0,0.00018835,2]
[364957787,1749352232386,-500.0,0.00018835,2]
[364957788,1749352232396,-500.0,0.00018835,2]
[364957789,1749352232406,-500.0,0.00018835,2]
[364957790,1749352232415,-500.0,0.00018835,2]
[364957791,1749352232425,-500.0,0.00018835,2]
[364957792,1749352232434,-432.9499886,0.00018835,2]
[364957793,1749352232444,-500.0,0.00018835,2]
[364957794,1749352232453,-500.0,0.00018835,2]
[364957795,1749352232463,-329.66586901,0.00018835,2]
[364957796,1749352232472,-500.0,0.00018835,2]
[364957797,1749352232483,-500.0,0.00018835,2]
[364957798,1749352232493,-500.0,0.00018835,2]
[364957799,1749352232503,-500.0,0.00018835,2]
[364957800,1749352232513,-500.0,0.00018835,2]
[364957801,1749352232523,-500.0,0.00018835,2]
[364957802,1749352232532,-500.0,0.00018835,2]
[364957803,1749352232542,-500.0,0.00018835,2]
[364957804,1749352232551,-500.0,0.00018835,2]
[364957805,1749352232561,-500.0,0.00018835,2]
[364957806,1749352232572,-500.0,0.00018835,2]
[364957807,1749352232583,-500.0,0.00018835,2]
[364957808,1749352232592,-500.0,0.00018835,2]
[364957809,1749352232602,-500.0,0.00018835,2]
[364957810,1749352232612,-500.0,0.00018835,2]
[364957811,1749352232623,-500.0,0.00018835,2]
[364957812,1749352232633,-500.0,0.00018835,2]
[364957813,1749352232643,-500.0,0.00018835,2]
[364957814,1749352232652,-187.1129925,0.00018835,2]
[364957815,1749352232661,-500.0,0.00018835,2]
[364957816,1749352232679,-500.0,0.00018835,2]